fUSD/lending_fUSD_20250423
["ID","MTS","AMOUNT","RATE_DAILY","PERIOD"]
[358706333,1745397045028,-185.809348,0.0003046,7]
[358706334,1745397045038,-151.0,0.0003046,7]
[358706335,1745397045048,-151.0,0.00030493,7]
[358706336,1745397045057,-151.0,0.00030493,7]
[358706337,1745397045067,-412.241262,0.00030493,7]
[358706338,1745397045076,-412.241262,0.00030493,7]
[358706339,1745397045086,-151.0,0.00030493,7]
[358706340,1745397045095,-151.0,0.00030493,7]
[358706341,1745397045107,-151.0,0.00030493,7]
[358706342,1745397045117,-587.736157,0.00030493,7]
[358706343,1745397045127,-587.736157,0.00030493,7]
[358706344,1745397045137,-151.93389675,0.000305,2]
[358706345,1745397045147,-1000.0,0.00030503,2]
[358706346,1745397045158,-151.0,0.00030546,7]
[358706347,1745397045168,-222.703088,0.00030546,7]
[358706348,1745397045179,-151.0,0.00030546,7]
[358706349,1745397045191,-157.455282,0.00030546,7]
[358706350,1745397045202,-157.455282,0.00030546,7]
[358706351,1745397045214,-151.0,0.00030546,7]
[358706352,1745397045224,-151.0,0.00030546,7]
[358706353,1745397045235,-151.0,0.00030546,7]
[358706354,1745397045247,-472.82254,0.00030546,2]
[358706355,1745397045258,-472.82254,0.00030546,2]
[358706356,1745397045268,-151.0,0.00030546,7]
[358706357,1745397045281,-151.0,0.00030546,7]
[358706358,1745397045291,-151.0,0.00030546,7]
[358706359,1745397045302,-151.0,0.00030546,7]
[358706360,1745397045312,-151.0,0.00030546,7]
[358706361,1745397045323,-151.0,0.00030546,7]
[358706362,1745397045334,-151.0,0.00030546,7]
[358706363,1745397045345,-151.0,0.00030551,7]
[358706364,1745397045357,-151.0,0.00030551,7]
[358706365,1745397045368,-151.0,0.00030551,7]
[358706366,1745397045379,-203.081804,0.00030551,7]
[358706367,1745397045390,-203.081804,0.00030551,7]
[358706368,1745397045401,-220.921621,0.00030551,7]
[358706369,1745397045411,-220.921621,0.00030551,7]
[358706370,1745397045421,-1802.470781,0.00030551,7]
[358706371,1745397045431,-1802.470781,0.00030551,7]
[358706372,1745397045441,-1502.199312,0.00030551,7]
[358706373,1745397045452,-1502.199312,0.00030551,7]
[358706374,1745397045463,-190.265889,0.00030551,7]
[358706375,1745397045474,-190.265889,0.00030551,7]
[358706376,1745397045484,-185.758689,0.00030551,7]
[358706377,1745397045495,-151.0,0.00030561,7]
[358706378,1745397045506,-151.0,0.00030561,7]
[358706379,1745397045519,-151.0,0.00030561,7]
[358706380,1745397045531,-151.0,0.00030561,7]
[358706381,1745397045542,-181.360655,0.00030561,7]
[358706382,1745397045552,-840.550709,0.00030561,7]
[358706383,1745397045562,-840.550709,0.00030561,7]
[358706384,1745397045571,-151.0,0.00030571,7]
[358706385,1745397045582,-156.605631,0.00030571,7]
[358706386,1745397045592,-151.0,0.00030571,7]
[358706387,1745397045602,-151.0,0.00030571,7]
[358706388,1745397045611,-796.0,0.00030571,2]
[358706389,1745397045621,-1444.0,0.00030571,2]
[358706390,1745397045631,-910.0,0.00030571,2]
[358706391,1745397045641,-1285.0,0.00030571,2]
[358706392,1745397045651,-547.0,0.00030571,2]
[358706393,1745397045662,-578.0,0.00030571,2]
[358706394,1745397045671,-4166.0,0.00030571,2]
[358706395,1745397045681,-151.0,0.00030571,7]
[358706396,1745397045691,-1132.0,0.00030571,2]
[358706397,1745397045701,-476.248427,0.00030571,7]
[358706398,1745397045711,-476.248427,0.00030571,7]
[358706400,1745397045722,-151.0,0.00030571,7]
[358706402,1745397045732,-151.0,0.00030571,7]
[358706403,1745397045743,-1334.0,0.00030571,2]
[358706405,1745397045753,-151.0,0.00030571,7]
[358706407,1745397045763,-390.701,0.00030571,2]
[358706408,1745397045773,-2145.0,0.00030571,2]
[358706409,1745397045783,-3984.0,0.00030571,2]
[358706410,1745397045794,-152.0,0.00030571,2]
[358706411,1745397045804,-830.993183,0.00030761,7]
[358706412,1745397045814,-830.993183,0.00030761,7]
[358706413,1745397045824,-188.689586,0.00030761,7]
[358706414,1745397045834,-240.140931,0.00030761,7]
[358706415,1745397045844,-702.083466,0.00030761,7]
[358706416,1745397045854,-269.553122,0.00030761,7]
[358706417,1745397045864,-240.140931,0.00030761,7]
[358706418,1745397045874,-702.083466,0.00030761,7]
[358706419,1745397045884,-269.553122,0.00030761,7]
[358706420,1745397045894,-200.372614,0.00030761,7]
[358706421,1745397045903,-200.0,0.00031,2]
[358706422,1745397045914,-500.0,0.00031,2]
[358706423,1745397045924,-151.0,0.000312,7]
[358706424,1745397045934,-6418.44360545,0.00031452,10]
[358706425,1745397045944,-43217.0,0.000315,2]
[358706426,1745397045955,-1702.39,0.00031507,2]
[358706427,1745397045965,-151.0,0.00031507,7]
[358706428,1745397045975,-151.0,0.00031507,7]
[358706429,1745397045986,-1469.6,0.00031612,2]
[358706430,1745397045996,-151.0,0.0003199,7]
[358706431,1745397046007,-152.704056,0.0003199,7]
[358706432,1745397046016,-152.704056,0.0003199,7]
[358706433,1745397046028,-3196.96066302,0.00032,5]
[358706434,1745397046039,-1507.11634356,0.00032,2]
[358706435,1745397046064,-151.0,0.00032,7]
[358706436,1745397046076,-280.88233884,0.0003209,2]
[358706437,1745397046087,-5565.0,0.000321,3]
[358706438,1745397046099,-151.0,0.0003249,7]
[358706439,1745397046112,-244.12793952,0.0003249,7]
[358706440,1745397046122,-157.455282,0.0003249,7]
[358706441,1745397046133,-157.455282,0.0003249,7]
[358706442,1745397046145,-151.0,0.0003249,7]
[358706443,1745397046156,-151.0,0.0003249,7]
[358706444,1745397046166,-151.0,0.0003249,7]
[358706445,1745397046176,-472.82254,0.0003249,2]
[358706446,1745397046188,-472.82254,0.0003249,2]
[358706447,1745397046198,-151.0,0.0003249,7]
[358706448,1745397046209,-151.0,0.0003249,7]
[358706449,1745397046219,-216.348932,0.0003249,7]
[358706450,1745397046230,-151.0,0.0003249,7]
[358706452,1745397046240,-255.589151,0.0003249,7]
[358706453,1745397046251,-161.075313,0.0003249,7]
[358706454,1745397046262,-151.0,0.000326,7]
[358706455,1745397046273,-6418.44360545,0.00032624,10]
[358706456,1745397046282,-164.027705,0.000327,7]
[358706457,1745397046292,-5565.0,0.000327,5]
[358706458,1745397046303,-151.0,0.0003279,7]
[358706459,1745397046313,-151.0,0.0003279,7]
[358706460,1745397046324,-412.241262,0.0003279,7]
[358706461,1745397046334,-412.241262,0.0003279,7]
[358706463,1745397046344,-151.0,0.0003279,7]
[358706465,1745397046354,-151.0,0.0003279,7]
[358706467,1745397046364,-202.669794,0.0003279,7]
[358706468,1745397046375,-587.736157,0.0003279,7]
[358706469,1745397046385,-587.736157,0.0003279,7]
[358706470,1745397046395,-4653.5514514,0.000328,2]
[358706471,1745397046406,-151.0,0.000328,7]
[358706472,1745397046417,-151.0,0.000328,7]
[358706473,1745397046428,-151.0,0.000328,7]
[358706474,1745397046438,-151.0,0.000328,7]
[358706475,1745397046448,-155.160062,0.000328,7]
[358706476,1745397046459,-203.081804,0.000328,7]
[358706477,1745397046471,-203.081804,0.000328,7]
[358706478,1745397046487,-1802.470781,0.000328,7]
[358706479,1745397046498,-1802.470781,0.000328,7]
[358706480,1745397046511,-190.265889,0.000328,7]
[358706481,1745397046522,-190.265889,0.000328,7]
[358706482,1745397046533,-220.921621,0.00032804,7]
[358706483,1745397046544,-220.921621,0.00032804,7]
[358706484,1745397046555,-1502.199312,0.00032804,7]
[358706485,1745397046566,-1502.199312,0.00032804,7]
[358706486,1745397046576,-2562.339587,0.00032804,7]
[358706487,1745397046587,-155.060244,0.00032877,7]
[358706488,1745397046598,-151.0,0.00032877,7]
[358706489,1745397046609,-151.0,0.00032877,7]
[358706490,1745397046619,-151.0,0.00032877,7]
[358706491,1745397046633,-151.0,0.00032877,7]
[358706492,1745397046644,-1702.39,0.00032877,2]
[358706493,1745397046655,-153.67,0.00032877,2]
[358706494,1745397046666,-495.79,0.00032877,2]
[358706495,1745397046677,-502.13170939,0.00032877,5]
[358706496,1745397046688,-150.0,0.00032877,5]
[358706497,1745397046699,-1102.78563424,0.000329,2]
[358706498,1745397046710,-163.02,0.00032904,30]
[358706499,1745397046720,-151.0,0.0003298,7]
[358706500,1745397046731,-476.248427,0.0003298,7]
[358706501,1745397046741,-476.248427,0.0003298,7]
[358706502,1745397046752,-151.0,0.0003298,7]
[358706503,1745397046762,-151.0,0.0003298,7]
[358706504,1745397046774,-151.0,0.0003298,7]
[358706505,1745397046785,-1000.0,0.0003298,28]
[358706506,1745397046795,-1000.0,0.0003298,28]
[358706507,1745397046806,-1000.0,0.0003298,28]
[358706508,1745397046817,-1000.0,0.0003298,28]
[358706509,1745397046827,-4557.32775913,0.00033,2]
[358706510,1745397046837,-25127.17473418,0.00033,2]
[358706511,1745397046848,-550.0,0.00033,2]
[358706512,1745397046858,-200.0,0.000331,2]
[358706513,1745397046869,-200.0,0.00033151,2]
[358706514,1745397046880,-663.34532651,0.0003325,2]
[358706515,1745397046890,-1772.80416616,0.0003325,2]
[358706516,1745397046901,-151.0,0.0003346,7]
[358706517,1745397046911,-151.0,0.0003346,7]
[358706518,1745397046927,-297.785111,0.0003346,7]
[358706519,1745397046938,-151.0,0.00033531,7]
[358706520,1745397046948,-151.0,0.00033531,7]
[358706521,1745397046959,-185.809348,0.00033531,7]
[358706522,1745397046970,-185.809348,0.00033531,7]
[358706523,1745397046981,-151.0,0.00033531,7]
[358706524,1745397046991,-163.108387,0.00033546,7]
[358706525,1745397047002,-151.0,0.00033546,7]
[358706526,1745397047013,-412.241262,0.00033546,7]
[358706527,1745397047024,-412.241262,0.00033546,7]
[358706528,1745397047035,-151.0,0.00033546,7]
[358706529,1745397047046,-151.0,0.00033546,7]
[358706530,1745397047056,-587.736157,0.00033546,7]
[358706531,1745397047068,-587.736157,0.00033546,7]
[358706532,1745397047079,-151.0,0.00033561,7]
[358706533,1745397047089,-874.166081,0.00033571,7]
[358706534,1745397047099,-909.565525,0.00033571,7]
[358706535,1745397047114,-909.565525,0.00033571,7]
[358706536,1745397047124,-796.0,0.00033571,2]
[358706537,1745397047134,-1444.0,0.00033571,2]
[358706538,1745397047146,-910.0,0.00033571,2]
[358706539,1745397047156,-1285.0,0.00033571,2]
[358706540,1745397047166,-547.0,0.00033571,2]
[358706541,1745397047176,-578.0,0.00033571,2]
[358706542,1745397047187,-4166.0,0.00033571,2]
[358706543,1745397047198,-830.993183,0.00033571,7]
[358706544,1745397047209,-830.993183,0.00033571,7]
[358706545,1745397047219,-1132.0,0.00033571,2]
[358706546,1745397047230,-240.140931,0.00033571,7]
[358706547,1745397047240,-702.083466,0.00033571,7]
[358706548,1745397047250,-269.553122,0.00033571,7]
[358706549,1745397047261,-240.140931,0.00033571,7]
[358706550,1745397047271,-702.083466,0.00033571,7]
[358706551,1745397047282,-269.553122,0.00033571,7]
[358706552,1745397047292,-151.0,0.00033571,7]
[358706553,1745397047302,-1334.0,0.00033571,2]
[358706554,1745397047312,-2145.0,0.00033571,2]
[358706555,1745397047322,-3984.0,0.00033571,2]
[358706556,1745397047333,-152.0,0.00033571,2]
[358706557,1745397047343,-200.372614,0.00033571,7]
[358706558,1745397047358,-6418.44360545,0.00033797,11]
[358706559,1745397047368,-1469.6,0.00033876,2]
[358706560,1745397047378,-4003.47403547,0.00034,2]
[358706561,1745397047389,-472.82254,0.00034,2]
[358706562,1745397047400,-472.82254,0.00034,2]
[358706563,1745397047410,-151.0,0.00034,7]
[358706564,1745397047421,-151.0,0.00034,7]
[358706565,1745397047431,-151.0,0.00034,7]
[358706566,1745397047442,-150.0,0.00034548,10]
[358706567,1745397047453,-157.724718,0.0003488,7]
[358706568,1745397047463,-476.248427,0.0003488,7]
[358706569,1745397047474,-476.248427,0.0003488,7]
[358706570,1745397047484,-151.0,0.0003488,7]
[358706571,1745397047495,-151.0,0.0003488,7]
[358706572,1745397047505,-151.0,0.0003488,7]
[358706573,1745397047515,-873.99679988,0.0003489,14]
[358706574,1745397047526,-6418.44360545,0.00034969,12]
[358706575,1745397047536,-151.0,0.0003499,7]
[358706576,1745397047547,-203.081804,0.0003499,7]
[358706577,1745397047557,-203.081804,0.0003499,7]
[358706578,1745397047568,-151.0,0.0003499,7]
[358706579,1745397047578,-3737.051218,0.0003499,7]
[358706580,1745397047588,-220.921621,0.0003499,7]
[358706581,1745397047598,-220.921621,0.0003499,7]
[358706582,1745397047608,-157.455282,0.0003499,7]
[358706583,1745397047618,-157.455282,0.0003499,7]
[358706584,1745397047628,-151.0,0.0003499,7]
[358706585,1745397047638,-223.990844,0.0003499,7]
[358706586,1745397047648,-1802.470781,0.0003499,7]
[358706587,1745397047659,-1802.470781,0.0003499,7]
[358706588,1745397047669,-1502.199312,0.0003499,7]
[358706589,1745397047679,-1502.199312,0.0003499,7]
[358706590,1745397047689,-151.0,0.0003499,7]
[358706591,1745397047699,-190.265889,0.0003499,7]
[358706592,1745397047709,-190.265889,0.0003499,7]
[358706593,1745397047719,-2562.339587,0.0003499,7]
[358706594,1745397047729,-6029.78467888,0.00035,2]
[358706595,1745397047739,-1569.32102285,0.00035,7]
[358706596,1745397047750,-8500.0,0.00035,30]
[358706597,1745397047760,-152.938439,0.00035,7]
[358706598,1745397047771,-151.0,0.00035,7]
[358706599,1745397047783,-151.0,0.00035,7]
[358706600,1745397047804,-600.0,0.00035,2]
[358706601,1745397047817,-1076.7,0.00035,2]
[358706602,1745397047828,-561.63,0.00035068,2]
[358706603,1745397047840,-180.0,0.00035304,14]
[358706604,1745397047854,-840.550709,0.00035471,7]
[358706605,1745397048185,-840.550709,0.00035471,7]
[358706606,1745397048195,-151.0,0.00035471,7]
[358706607,1745397048207,-151.0,0.00035471,7]
[358706608,1745397048217,-150.0,0.00035616,5]
[358706609,1745397048227,-181.21,0.00035616,2]
[358706610,1745397048237,-153.67,0.00035616,2]
[358706611,1745397048247,-151.0,0.0003591,7]
[358706612,1745397048258,-412.241262,0.0003591,7]
[358706613,1745397048268,-412.241262,0.0003591,7]
[358706614,1745397048279,-151.0,0.0003591,7]
[358706615,1745397048289,-587.736157,0.0003591,7]
[358706616,1745397048299,-587.736157,0.0003591,7]
[358706617,1745397048310,-151.0,0.0003592,7]
[358706618,1745397048320,-151.0,0.0003592,7]
[358706619,1745397048331,-181.360655,0.0003592,7]
[358706620,1745397048341,-300.0,0.00035929,10]
[358706621,1745397048351,-476.248427,0.00035929,7]
[358706622,1745397048362,-476.248427,0.00035929,7]
[358706623,1745397048373,-151.0,0.00035929,7]
[358706624,1745397048383,-500.0,0.00035929,10]
[358706625,1745397048394,-151.0,0.00035929,7]
[358706626,1745397048404,-151.204998,0.00035929,7]
[358706627,1745397048414,-200395.46247041,0.0003593,7]
[358706628,1745397048424,-151.0,0.0003593,7]
[358706629,1745397048434,-151.0,0.0003593,7]
[358706630,1745397048445,-203.954139,0.0003593,7]
[358706631,1745397048455,-263.624752,0.0003593,7]
[358706632,1745397048465,-151.0,0.0003593,7]
[358706633,1745397048475,-151.0,0.0003593,7]
[358706634,1745397048485,-181.360655,0.0003593,7]
[358706635,1745397048495,-874.166081,0.0003593,7]
[358706636,1745397048505,-151.0,0.0003593,7]
[358706637,1745397048515,-151.0,0.0003593,7]
[358706638,1745397048524,-151.0,0.0003593,7]
[358706639,1745397048534,-909.565525,0.0003593,7]
[358706640,1745397048544,-909.565525,0.0003593,7]
[358706641,1745397048555,-151.0,0.0003593,7]
[358706642,1745397048565,-840.550709,0.0003593,7]
[358706643,1745397048579,-840.550709,0.0003593,7]
[358706644,1745397048590,-151.0,0.0003593,7]
[358706645,1745397048601,-151.0,0.0003593,7]
[358706646,1745397048612,-152.704056,0.0003593,7]
[358706647,1745397048623,-152.704056,0.0003593,7]
[358706648,1745397048634,-151.0,0.0003593,7]
[358706649,1745397048644,-185.809348,0.0003593,7]
[358706650,1745397048654,-185.809348,0.0003593,7]
[358706651,1745397048664,-151.0,0.0003593,7]
[358706652,1745397048675,-177.478088,0.0003593,7]
[358706653,1745397048686,-151.0,0.0003593,7]
[358706654,1745397048696,-151.0,0.0003593,7]
[358706655,1745397048707,-151.0,0.0003593,7]
[358706656,1745397048717,-203.081804,0.0003593,7]
[358706657,1745397048728,-203.081804,0.0003593,7]
[358706658,1745397048738,-151.0,0.0003593,7]
[358706659,1745397048748,-3737.051218,0.0003593,7]
[358706660,1745397048759,-220.921621,0.0003593,7]
[358706661,1745397048769,-220.921621,0.0003593,7]
[358706662,1745397048780,-157.455282,0.0003593,7]
[358706663,1745397048790,-157.455282,0.0003593,7]
[358706664,1745397048799,-151.0,0.0003593,7]
[358706665,1745397048810,-1802.470781,0.0003593,7]
[358706666,1745397048819,-1802.470781,0.0003593,7]
[358706667,1745397048830,-1502.199312,0.0003593,7]
[358706668,1745397048840,-1502.199312,0.0003593,7]
[358706669,1745397048850,-151.0,0.0003593,7]
[358706670,1745397048860,-472.82254,0.0003593,2]
[358706671,1745397048871,-472.82254,0.0003593,2]
[358706672,1745397048881,-190.265889,0.0003593,7]
[358706673,1745397048891,-190.265889,0.0003593,7]
[358706674,1745397048902,-151.0,0.0003593,7]
[358706675,1745397048912,-2562.339587,0.0003593,7]
[358706676,1745397048922,-161.847082,0.0003593,7]
[358706677,1745397048933,-159.371649,0.0003593,7]
[358706678,1745397048943,-412.241262,0.0003593,7]
[358706679,1745397048953,-412.241262,0.0003593,7]
[358706680,1745397048963,-151.0,0.0003593,7]
[358706681,1745397048974,-587.736157,0.0003593,7]
[358706682,1745397048984,-587.736157,0.0003593,7]
[358706683,1745397048994,-830.993183,0.0003593,7]
[358706684,1745397049004,-476.248427,0.0003593,7]
[358706685,1745397049014,-476.248419,0.0003593,7]
[358706686,1745397049025,-132.58705698,0.0003593,7]
[358706687,1745397049375,-200.372614,0.0002746,7]
[358706688,1745397049386,-694.527386,0.0003298,28]
[358706689,1745397049478,-196.9085449,0.000199,2]
[358706690,1745397049488,-200.372614,0.0002798,7]
[358706691,1745397049498,-200.372614,0.0002897,7]
[358706692,1745397049508,-200.372614,0.0002899,7]
[358706693,1745397049518,-200.372614,0.0003,7]
[358706694,1745397049528,-305.472614,0.0003298,28]
[358706695,1745397049538,-1000.0,0.0003298,28]
[358706696,1745397049547,-1000.0,0.0003298,28]
[358706697,1745397049557,-1000.0,0.0003298,28]
[358706698,1745397049568,-1000.0,0.0003298,28]
[358706699,1745397049579,-107.55387402,0.0003593,7]
[358706700,1745397049588,-702.083466,0.0003593,7]
[358706701,1745397049598,-269.553122,0.0003593,7]
[358706702,1745397049608,-240.140931,0.0003593,7]
[358706703,1745397049618,-702.083466,0.0003593,7]
[358706704,1745397049628,-269.553122,0.0003593,7]
[358706705,1745397049638,-151.0,0.0003593,7]
[358706706,1745397049648,-151.0,0.0003593,7]
[358706707,1745397049657,-151.0,0.0003593,7]
[358706708,1745397049667,-200.372614,0.0003593,7]
[358706709,1745397049677,-151.0,0.00035961,7]
[358706710,1745397049687,-843.49715552,0.00035971,5]
[358706711,1745397049697,-25000.0,0.00036,15]
[358706712,1745397049707,-1469.6,0.0003614,2]
[358706713,1745397049717,-6418.44360545,0.00036141,13]
[358706714,1745397049727,-796.0,0.00036571,2]
[358706715,1745397049737,-1444.0,0.00036571,2]
[358706716,1745397049747,-910.0,0.00036571,2]
[358706717,1745397049756,-1285.0,0.00036571,2]
[358706718,1745397049766,-547.0,0.00036571,2]
[358706719,1745397049775,-4166.0,0.00036571,2]
[358706720,1745397049785,-1132.0,0.00036571,2]
[358706721,1745397049794,-1334.0,0.00036571,2]
[358706722,1745397049804,-2145.0,0.00036571,2]
[358706723,1745397049814,-2379.095,0.00036571,2]
[358706724,1745397049824,-152.0,0.00036571,2]
[358706725,1745397049834,-1500.0,0.0003687,5]
[358706726,1745397049843,-1500.0,0.0003687,5]
[358706727,1745397049855,-650.0,0.00037,2]
[358706728,1745397049864,-6418.44360545,0.00037314,13]
[358706729,1745397049874,-513.09623006,0.00037354,5]
[358706730,1745397049883,-198.37434361,0.00037619,4]
[358706731,1745397049893,-200.0,0.000377,2]
[358706732,1745397049903,-200.0,0.00037808,2]
[358706733,1745397049913,-275.0,0.00037808,2]
[358706734,1745397049925,-378.55,0.00037877,2]
[358706735,1745397049934,-28640.21664406,0.00038,15]
[358706736,1745397049944,-160.0,0.00038,2]
[358706737,1745397049954,-1076.70139212,0.00038,2]
[358706738,1745397049964,-161.303,0.00038294,51]
[358706739,1745397049974,-160.0,0.00038356,5]
[358706740,1745397049985,-153.67,0.00038356,2]
[358706741,1745397049995,-700.0,0.00038356,2]
[358706742,1745397050006,-700.0,0.00038356,2]
[358706743,1745397050016,-700.0,0.00038356,2]
[358706744,1745397050026,-700.0,0.00038356,2]
[358706745,1745397050035,-700.0,0.00038356,2]
[358706746,1745397050045,-700.0,0.00038356,2]
[358706747,1745397050055,-700.0,0.00038356,2]
[358706748,1745397050065,-700.0,0.00038356,2]
[358706749,1745397050075,-700.0,0.00038356,2]
[358706750,1745397050085,-700.0,0.00038356,2]
[358706751,1745397050095,-150.05898027,0.00038356,5]
[358706752,1745397050107,-1469.6,0.00038404,2]
[358706753,1745397050118,-6418.44360545,0.00038486,14]
[358706754,1745397050128,-151.25,0.000389,2]
[358706755,1745397050138,-151.25,0.000389,2]
[358706756,1745397050148,-151.25,0.000389,2]
[358706757,1745397050160,-151.25,0.000389,2]
[358706758,1745397050170,-151.25,0.000389,2]
[358706759,1745397050180,-151.25,0.000389,2]
[358706760,1745397050193,-151.25,0.000389,2]
[358706761,1745397050203,-151.25,0.000389,2]
[358706762,1745397050215,-151.25,0.000389,2]
[358706763,1745397050226,-151.25,0.000389,2]
[358706764,1745397050239,-151.25,0.000389,2]
[358706765,1745397050249,-151.25,0.000389,2]
[358706766,1745397050259,-151.25,0.000389,2]
[358706767,1745397050269,-151.25,0.000389,2]
[358706768,1745397050280,-151.25,0.000389,2]
[358706769,1745397050290,-151.25,0.000389,2]
[358706770,1745397050300,-151.25,0.000389,2]
[358706771,1745397050309,-151.25,0.000389,2]
[358706772,1745397050319,-151.25,0.000389,2]
[358706773,1745397050329,-151.25,0.000389,2]
[358706774,1745397050339,-151.25,0.000389,2]
[358706775,1745397050349,-151.25,0.000389,2]
[358706776,1745397050359,-151.25,0.000389,2]
[358706777,1745397050369,-151.25,0.000389,2]
[358706778,1745397050380,-151.25,0.000389,2]
[358706779,1745397050446,-151.25,0.000389,2]
[358706780,1745397050456,-151.25,0.000389,2]
[358706781,1745397050466,-151.25,0.000389,2]
[358706782,1745397050476,-151.25,0.000389,2]
[358706783,1745397050485,-151.25,0.000389,2]
[358706784,1745397050494,-151.25,0.000389,2]
[358706785,1745397050504,-151.25,0.000389,2]
[358706786,1745397050513,-151.25,0.000389,2]
[358706787,1745397050523,-151.25,0.000389,2]
[358706788,1745397050533,-151.25,0.000389,2]
[358706789,1745397050542,-151.25,0.000389,2]
[358706790,1745397050552,-151.25,0.000389,2]
[358706791,1745397050562,-151.25,0.000389,2]
[358706792,1745397050571,-151.25,0.000389,2]
[358706793,1745397050580,-151.25,0.000389,2]
[358706794,1745397050590,-151.25,0.000389,2]
[358706795,1745397050599,-151.25,0.000389,2]
[358706796,1745397050609,-151.25,0.000389,2]
[358706797,1745397050619,-151.25,0.000389,2]
[358706798,1745397050629,-151.25,0.000389,2]
[358706799,1745397050639,-151.25,0.000389,2]
[358706800,1745397050650,-151.25,0.000389,2]
[358706801,1745397050660,-151.25,0.000389,2]
[358706802,1745397050669,-151.25,0.000389,2]
[358706803,1745397050679,-151.25,0.000389,2]
[358706804,1745397050689,-151.25,0.000389,2]
[358706805,1745397050698,-151.25,0.000389,2]
[358706806,1745397050708,-151.25,0.000389,2]
[358706807,1745397050719,-151.25,0.000389,2]
[358706808,1745397050729,-151.25,0.000389,2]
[358706809,1745397050739,-151.25,0.000389,2]
[358706810,1745397050749,-151.25,0.000389,2]
[358706811,1745397050759,-151.25,0.000389,2]
[358706812,1745397050768,-151.25,0.000389,2]
[358706813,1745397050778,-151.25,0.000389,2]
[358706814,1745397050788,-151.25,0.000389,2]
[358706815,1745397050799,-151.25,0.000389,2]
[358706816,1745397050809,-151.25,0.000389,2]
[358706817,1745397050818,-151.25,0.000389,2]
[358706818,1745397050827,-151.25,0.000389,2]
[358706819,1745397050838,-151.25,0.000389,2]
[358706820,1745397050848,-151.25,0.000389,2]
[358706821,1745397050859,-151.25,0.000389,2]
[358706822,1745397050869,-234.35508582,0.00038999,10]
[358706823,1745397050881,-2061.46,0.00039,14]
[358706824,1745397050890,-151.0,0.00039,14]
[358706825,1745397050900,-199260.0,0.00039,3]
[358706826,1745397050910,-156.874295,0.00039,14]
[358706827,1745397050921,-151.0,0.00039,14]
[358706828,1745397050930,-151.0,0.00039,14]
[358706829,1745397050940,-316.675447,0.00039,14]
[358706830,1745397050950,-237.577437,0.00039,14]
[358706831,1745397050959,-181.360655,0.00039,14]
[358706832,1745397050969,-874.166081,0.00039,14]
[358706833,1745397050978,-874.166081,0.00039,14]
[358706834,1745397050987,-151.0,0.00039,14]
[358706835,1745397050997,-151.0,0.00039,14]
[358706836,1745397051006,-151.0,0.00039,14]
[358706837,1745397051015,-909.565525,0.00039,14]
[358706838,1745397051025,-909.565525,0.00039,14]
[358706839,1745397051035,-151.0,0.00039,14]
[358706840,1745397051044,-734.670196,0.00039,14]